bitfinex/quotes_BTCUSD_20251212
["timestamp","ask_amount","ask_price","bid_price","bid_amount"]
[1765518081325,0.01508,92338.0,92337.0,0.21659789]
[1765518084387,0.01808,92338.0,92337.0,0.21659789]
[1765518084590,0.006,92338.0,92337.0,0.21659789]
[1765518089453,0.006,92338.0,92337.0,0.26334789]
[1765518089884,0.00709647,92338.0,92337.0,0.27519789]
[1765518090839,0.00409647,92338.0,92337.0,0.27519789]
[1765518091271,0.00109647,92338.0,92337.0,0.27519789]
[1765518091663,0.00209647,92338.0,92337.0,0.27519789]
[1765518094892,0.00209647,92338.0,92337.0,0.27681076]
[1765518095095,0.00209647,92338.0,92337.0,0.61063874]
[1765518095330,0.00209647,92338.0,92337.0,0.68859135]
[1765518095523,0.00209647,92338.0,92337.0,0.61063874]
[1765518096403,0.00109647,92338.0,92337.0,0.61063874]
[1765518097240,0.00109647,92338.0,92337.0,0.61163874]
[1765518100732,0.00109647,92338.0,92337.0,0.56851076]
[1765518102184,0.00109647,92338.0,92337.0,0.61163874]
[1765518124726,0.00109647,92338.0,92337.0,0.56851076]
[1765518124926,0.00109647,92338.0,92337.0,0.61163874]
[1765518125379,0.00109647,92338.0,92337.0,0.64648866]
[1765518126248,0.00109647,92338.0,92337.0,0.56851076]
[1765518127848,0.00109647,92338.0,92337.0,0.52014789]
[1765518128689,0.00109647,92338.0,92337.0,0.51914789]
[1765518128894,0.00109647,92338.0,92337.0,0.52014789]
[1765518129042,0.00109647,92338.0,92337.0,0.52114789]
[1765518129244,0.00109647,92338.0,92337.0,0.52014789]
[1765518129622,0.00109647,92338.0,92337.0,0.52114789]
[1765518130354,0.00109647,92338.0,92337.0,0.52014789]
[1765518133199,0.00109647,92338.0,92337.0,0.22944789]
[1765518133421,0.03313066,92338.0,92337.0,0.001]
[1765518133860,0.00824066,92338.0,92337.0,0.001]
[1765518134533,0.00824066,92338.0,92337.0,0.21659789]
[1765518135670,0.00109647,92338.0,92337.0,0.21659789]
[1765518137098,0.00109647,92338.0,92335.0,0.2274311]
[1765518137099,0.04067647,92338.0,92335.0,0.2274311]
[1765518137301,0.03958,92338.0,92335.0,0.2274311]
[1765518137615,0.01132225,92340.0,92335.0,0.2274311]
[1765518137616,0.01666879,92336.0,92335.0,0.2274311]
[1765518138587,0.00103879,92336.0,92335.0,0.2274311]
[1765518149537,0.00103879,92336.0,92335.0,0.2396611]
[1765518150651,0.00103879,92336.0,92335.0,0.2790811]
[1765518151925,0.00103879,92336.0,92335.0,0.2554711]
[1765518152721,0.00103879,92336.0,92335.0,0.33751834]
[1765518154307,0.00103879,92336.0,92335.0,0.2790811]
[1765518158603,0.00103879,92336.0,92335.0,0.28069397]
[1765518161845,0.00103879,92336.0,92335.0,0.61452195]
[1765518162348,0.00103879,92336.0,92335.0,0.69248267]
[1765518163298,0.00103879,92336.0,92335.0,0.61452195]
[1765518164278,0.00103879,92336.0,92335.0,0.69241385]
[1765518164684,0.00103879,92336.0,92335.0,0.69541385]
[1765518165091,0.00103879,92336.0,92335.0,0.57439397]
[1765518165341,0.00103879,92336.0,92335.0,0.65227498]
[1765518167057,0.00103879,92336.0,92335.0,0.57439397]
[1765518167289,0.00103879,92336.0,92335.0,0.53497397]
[1765518167505,0.00103879,92336.0,92335.0,0.2304311]
[1765518168050,0.00103879,92336.0,92335.0,0.28883903]
[1765518168290,0.00103879,92336.0,92335.0,0.28783903]
[1765518168637,0.00103879,92336.0,92335.0,0.30958092]
[1765518169787,0.00103879,92336.0,92335.0,0.2511711]
[1765518169995,0.00103879,92336.0,92335.0,0.28584148]
[1765518170192,0.00103879,92336.0,92335.0,0.2274311]
[1765518170401,0.00103879,92336.0,92335.0,0.28584247]
[1765518170617,0.00103879,92336.0,92335.0,0.2274311]
[1765518171716,0.00103879,92336.0,92335.0,0.26919397]
[1765518171921,0.00103879,92336.0,92335.0,0.29676053]
[1765518173112,0.00103879,92336.0,92335.0,0.27302053]
[1765518173298,0.04068879,92336.0,92335.0,0.2274311]
[1765518173531,0.04776786,92336.0,92335.0,0.2284311]
[1765518173859,0.04776786,92336.0,92335.0,0.2304311]
[1765518174065,0.04776786,92336.0,92335.0,0.2294311]
[1765518174285,0.04776786,92336.0,92335.0,0.2274311]
[1765518175578,0.04776786,92336.0,92335.0,0.01083012]
[1765518175796,0.04776786,92336.0,92333.0,0.22743547]
[1765518176021,0.01169,92334.0,92333.0,0.22743547]
[1765518176735,0.03582,92334.0,92333.0,0.22743547]
[1765518177168,0.03582,92334.0,92333.0,0.22843547]
[1765518178677,0.05134,92334.0,92333.0,0.001]
[1765518179152,0.10605153,92334.0,92333.0,0.001]
[1765518179877,0.10705153,92334.0,92332.0,0.22743965]
[1765518180381,0.02413,92333.0,92332.0,0.22743965]
[1765518182579,0.08420636,92333.0,92332.0,0.22743965]
[1765518182809,0.08420636,92333.0,92332.0,0.01083048]
[1765518183042,0.04065,92333.0,92332.0,0.01083048]
[1765518183285,0.04065,92333.0,92327.0,0.02712953]
[1765518183511,0.01083106,92327.0,92321.0,0.01083177]
[1765518183706,0.00586,92322.0,92321.0,0.01083177]
[1765518184375,0.02138,92322.0,92321.0,0.01083177]
[1765518184558,0.04551,92322.0,92321.0,0.01083177]
[1765518184959,0.04551,92322.0,92321.0,0.01183177]
[1765518185564,0.00586,92324.0,92322.0,0.21663308]
[1765518185738,0.01169,92328.0,92325.0,0.0108313]
[1765518186743,0.01169,92328.0,92327.0,0.21662135]
[1765518189056,0.01269,92328.0,92327.0,0.21662135]
[1765518189424,0.001,92328.0,92327.0,0.21662135]
[1765518190913,0.001,92328.0,92325.0,0.0108313]
[1765518191284,0.001,92328.0,92326.0,0.2166237]
[1765518191877,0.00712,92330.0,92327.0,0.01083106]
[1765518192054,0.02413,92329.0,92327.0,0.01083106]
[1765518192258,0.001,92328.0,92327.0,0.01083106]
[1765518192696,0.02413,92329.0,92327.0,0.01083106]
[1765518193654,0.02413,92329.0,92328.0,0.21661901]
[1765518194073,0.02413,92329.0,92327.0,0.01083106]
[1765518194480,0.00080801,92328.0,92327.0,0.2274501]
[1765518195784,0.02788538,92328.0,92327.0,0.2274501]
[1765518196138,0.02888538,92328.0,92327.0,0.2274501]
[1765518196537,0.02888538,92328.0,92327.0,0.2684801]
[1765518196538,0.00180801,92328.0,92327.0,0.2684801]
[1765518196740,0.00180801,92328.0,92327.0,0.27009297]
[1765518198022,0.00080801,92328.0,92327.0,0.27009297]
[1765518198222,0.00080801,92328.0,92327.0,0.24567297]
[1765518198422,0.00180801,92328.0,92327.0,0.22906297]
[1765518199848,0.00180801,92328.0,92327.0,0.2274501]
[1765518217378,0.00180801,92328.0,92327.0,0.28586314]
[1765518220201,0.00180801,92328.0,92327.0,0.01083106]
[1765518220433,0.01095755,92328.0,92327.0,0.01083106]
[1765518221102,0.00180801,92328.0,92327.0,0.01083106]
[1765518222610,0.01263896,92328.0,92324.0,0.06924445]
[1765518222820,0.03890832,92328.0,92324.0,0.01083141]
[1765518222975,0.02807737,92328.0,92325.0,0.0108313]
[1765518223357,0.03960655,92328.0,92326.0,0.2166237]
[1765518223529,0.03860655,92328.0,92325.0,0.0108313]
[1765518223838,0.00077917,92327.0,92325.0,0.0108313]
[1765518224030,0.03860655,92328.0,92325.0,0.0108313]
[1765518224236,0.03394898,92327.0,92325.0,0.0108313]
[1765518224783,0.02707737,92328.0,92325.0,0.0108313]
[1765518225183,0.02707737,92328.0,92326.0,0.2166237]
[1765518225404,0.03790749,92330.0,92327.0,0.01083106]
[1765518225642,0.06113749,92330.0,92327.0,0.01083106]
[1765518226492,0.02391,92329.0,92327.0,0.01083106]
[1765518226665,0.05885813,92328.0,92327.0,0.01083106]
[1765518229077,0.05985813,92328.0,92327.0,0.01083106]
[1765518230074,0.02807737,92328.0,92327.0,0.01083106]
[1765518230431,0.02888538,92328.0,92327.0,0.01083106]
[1765518234044,0.00180801,92328.0,92327.0,0.01083106]
[1765518234250,0.02888538,92328.0,92327.0,0.01083106]
[1765518234443,0.00180801,92328.0,92327.0,0.01083106]
[1765518234702,0.02888538,92328.0,92327.0,0.01083106]
[1765518235243,0.00180801,92328.0,92327.0,0.01083106]
[1765518236669,0.02888538,92328.0,92327.0,0.01083106]
[1765518236879,0.00180801,92328.0,92327.0,0.01083106]
[1765518238000,0.02888538,92328.0,92327.0,0.01083106]
[1765518238201,0.06903538,92328.0,92327.0,0.01083106]
[1765518238603,0.12536529,92328.0,92327.0,0.01083106]
[1765518240704,0.06903538,92328.0,92327.0,0.01083106]
[1765518241109,0.2166237,92326.0,92321.0,0.06924481]
[1765518241276,0.02223,92323.0,92322.0,0.22746473]
[1765518241811,0.04614,92323.0,92322.0,0.22746473]
[1765518242842,0.02223,92323.0,92322.0,0.22746473]
[1765518242973,0.00599,92323.0,92322.0,0.22846473]
[1765518243176,0.00599,92325.0,92324.0,0.21662839]
[1765518243797,0.01224,92331.0,92328.0,0.01083095]
[1765518244072,0.03615,92331.0,92328.0,0.01083095]
[1765518244503,0.01624,92329.0,92328.0,0.01083095]
[1765518245125,0.04015,92329.0,92328.0,0.01083095]
[1765518245333,0.01624,92329.0,92328.0,0.01083095]
[1765518245539,0.01224,92331.0,92329.0,0.21661666]
[1765518245751,0.00577,92333.0,92329.0,0.21661666]
[1765518245752,0.00577,92333.0,92332.0,0.21660962]
[1765518246178,0.01196,92336.0,92335.0,0.21660258]
[1765518246408,0.00049271,92340.0,92339.0,0.2165932]
[1765518253790,0.00049271,92340.0,92339.0,0.2322032]
[1765518253994,0.00049271,92340.0,92339.0,0.2570232]
[1765518254199,0.00164687,92340.0,92339.0,0.2570232]
[1765518257758,0.00164687,92340.0,92339.0,0.30015118]
[1765518258270,0.00164687,92340.0,92339.0,0.2570232]
[1765518266566,0.00164687,92340.0,92339.0,0.25863607]
[1765518266806,0.00164687,92340.0,92339.0,0.27021607]
[1765518270580,0.00164687,92340.0,92339.0,0.22978607]
[1765518271410,0.00164687,92340.0,92339.0,0.25290607]
[1765518271618,0.00164687,92340.0,92339.0,0.26881607]
[1765518272488,0.00164687,92340.0,92339.0,0.22978607]
[1765518276790,0.00164687,92340.0,92339.0,0.26881607]
[1765518287021,0.00164687,92340.0,92339.0,0.24569607]
[1765518287230,0.00164687,92340.0,92339.0,0.26841607]
[1765518291412,0.00164687,92340.0,92339.0,0.31154405]
[1765518291610,0.00164687,92340.0,92339.0,0.60224405]
[1765518292190,0.00025272,92340.0,92339.0,0.60224405]
[1765518293542,0.00025272,92340.0,92339.0,0.60424405]
[1765518294381,0.00025272,92340.0,92339.0,0.68214061]
[1765518297289,0.00025272,92340.0,92339.0,0.60424405]
[1765518300551,0.00025272,92340.0,92339.0,0.68214061]
[1765518301637,0.00025272,92340.0,92339.0,0.60424405]
[1765518302106,0.00025272,92340.0,92339.0,0.68214061]
[1765518303022,0.00025272,92340.0,92339.0,0.60424405]
[1765518312152,0.00025272,92340.0,92339.0,0.56111607]
[1765518312369,0.00025272,92340.0,92339.0,0.60424405]
[1765518313887,0.0004,92350.0,92347.0,0.01082872]
[1765518314064,0.0004,92350.0,92349.0,0.57317864]
[1765518314264,0.0004,92350.0,92349.0,0.59589864]
[1765518314990,0.0004,92350.0,92349.0,0.65025009]
[1765518315197,0.0004,92350.0,92349.0,0.74769085]
[1765518315401,0.0004,92350.0,92349.0,0.65025009]
[1765518315631,0.0004,92360.0,92359.0,0.55037428]
[1765518315837,0.0004,92360.0,92359.0,0.65800554]
[1765518316045,1e-08,92360.0,92359.0,0.65800554]
[1765518316252,1e-08,92360.0,92359.0,0.66224463]
[1765518317335,1e-08,92360.0,92359.0,0.66624463]
[1765518317741,1e-08,92360.0,92359.0,0.67024463]
[1765518319828,1e-08,92360.0,92359.0,1.79798339]
[1765518320055,1e-08,92360.0,92359.0,1.70096223]
[1765518320430,1e-08,92360.0,92359.0,1.67024463]
[1765518321242,1e-08,92360.0,92359.0,1.76714986]
[1765518322549,1e-08,92360.0,92359.0,1.67024463]
[1765518323996,0.0004,92370.0,92369.0,0.56724773]
[1765518324251,0.00078882,92370.0,92369.0,1.61104013]
[1765518324548,0.00078882,92370.0,92369.0,1.63490013]
[1765518324701,0.00078882,92370.0,92369.0,1.6392321]
[1765518324910,0.00165397,92370.0,92369.0,1.6392321]
[1765518325209,0.00165397,92370.0,92369.0,1.6412321]
[1765518325610,0.00165397,92370.0,92369.0,1.6442321]
[1765518327362,0.00165397,92370.0,92369.0,1.2823121]
[1765518328333,0.00165397,92370.0,92369.0,1.1633121]
[1765518329935,0.00165397,92370.0,92369.0,1.0919121]
[1765518331415,0.00165397,92370.0,92369.0,1.2375121]
[1765518333905,0.00165397,92370.0,92369.0,1.2545921]
[1765518335690,0.00165397,92370.0,92369.0,1.0209921]
[1765518337523,0.00165397,92370.0,92369.0,1.0025921]
[1765518337941,0.00165397,92370.0,92369.0,0.8013121]
[1765518338083,0.00165397,92370.0,92369.0,0.76837371]
[1765518340372,0.00165397,92370.0,92369.0,0.84585127]
[1765518341486,0.00165397,92370.0,92369.0,0.76837371]
[1765518342144,0.00165397,92370.0,92369.0,0.75129371]
[1765518342364,0.00165397,92370.0,92369.0,0.76837371]
[1765518343296,0.00165397,92370.0,92369.0,0.62077371]
[1765518343508,0.00165397,92370.0,92369.0,0.62177371]
[1765518343960,0.00165397,92370.0,92369.0,0.61877371]
[1765518344422,0.00165397,92370.0,92369.0,0.62077371]
[1765518347573,0.00165397,92370.0,92369.0,0.6647712]
[1765518347772,0.00165397,92370.0,92369.0,0.57185722]
[1765518347999,0.00165397,92370.0,92369.0,0.61037722]
[1765518348351,0.00165397,92370.0,92369.0,0.6535052]
[1765518348740,0.00165397,92370.0,92369.0,0.6505052]
[1765518348943,0.00165397,92370.0,92369.0,0.6525052]
[1765518349973,0.00165397,92370.0,92369.0,0.58624722]
[1765518350750,0.00165397,92370.0,92369.0,0.60937722]
[1765518351560,0.00165397,92370.0,92369.0,0.58624722]
[1765518354709,0.00165397,92370.0,92369.0,0.60937722]
[1765518356594,0.00165397,92370.0,92369.0,0.6525052]
[1765518359002,0.00165397,92370.0,92369.0,0.60937722]
[1765518362725,0.00165397,92370.0,92369.0,0.57085722]
[1765518363067,0.00165397,92370.0,92369.0,0.60937722]
[1765518369293,0.00165397,92370.0,92369.0,0.58463435]
[1765518369477,0.00165397,92370.0,92369.0,0.60776435]
[1765518370739,0.00165397,92370.0,92369.0,0.6525052]
[1765518371163,0.00025549,92370.0,92369.0,0.6525052]
[1765518374287,2.989e-05,92370.0,92369.0,0.78012803]
[1765518374490,2.989e-05,92370.0,92369.0,0.6832228]
[1765518375115,2.989e-05,92370.0,92369.0,0.6525052]
[1765518376036,2.989e-05,92370.0,92369.0,0.70252359]
[1765518376443,2.989e-05,92370.0,92369.0,0.79980016]
[1765518377016,2.989e-05,92370.0,92369.0,0.79880016]
[1765518377378,2.989e-05,92370.0,92369.0,0.80180016]
[1765518377775,2.989e-05,92370.0,92369.0,0.80080016]
[1765518378119,2.989e-05,92370.0,92369.0,0.80480016]
[1765518379558,2.989e-05,92370.0,92369.0,0.70752359]
[1765518379759,2.989e-05,92370.0,92369.0,0.80480016]
[1765518379984,2.989e-05,92370.0,92369.0,0.70752359]
[1765518380526,2.989e-05,92370.0,92369.0,0.80474879]
[1765518381264,0.0004,92380.0,92379.0,0.5503274]
[1765518381468,0.00048417,92380.0,92379.0,0.64592331]
[1765518381674,0.00048417,92380.0,92379.0,0.67072331]
[1765518382054,0.00048417,92380.0,92379.0,0.67505529]
[1765518382598,0.00048417,92380.0,92379.0,0.67705529]
[1765518382801,0.00048417,92380.0,92379.0,0.67905529]
[1765518383401,0.00048417,92380.0,92379.0,0.61836225]
[1765518386888,0.00077247,92380.0,92379.0,0.61836225]
[1765518390893,0.00077247,92380.0,92379.0,0.66838064]
[1765518391352,0.00012017,92380.0,92379.0,0.66838064]
[1765518391962,0.00012017,92380.0,92379.0,0.76560584]
[1765518392624,0.00012017,92380.0,92379.0,0.66838064]
[1765518396741,0.00012017,92380.0,92379.0,0.81398064]
[1765518397443,0.00012017,92380.0,92379.0,0.91120584]
[1765518398473,0.00012017,92380.0,92379.0,0.90920584]
[1765518398626,0.00012017,92380.0,92379.0,0.90720584]
[1765518398998,0.00012017,92380.0,92379.0,0.91720584]
[1765518399554,0.00012017,92380.0,92379.0,0.81998064]
[1765518400503,0.0004,92390.0,92389.0,0.60032235]
[1765518400703,0.0004,92390.0,92389.0,0.61814522]
[1765518400861,0.0004,92390.0,92389.0,0.64294522]
[1765518401062,0.0004,92390.0,92389.0,0.64727633]
[1765518401580,0.0004,92390.0,92389.0,0.64927633]
[1765518401789,0.0004,92390.0,92389.0,0.65227633]
[1765518404475,0.0004,92390.0,92389.0,0.66935633]
[1765518406164,0.00068826,92390.0,92389.0,0.66935633]
[1765518406593,0.00068826,92390.0,92389.0,0.65227633]
[1765518406746,0.00068826,92390.0,92389.0,0.63619484]
[1765518406946,0.00068826,92390.0,92389.0,0.58617645]
[1765518407535,0.00068826,92390.0,92389.0,0.58417645]
[1765518407948,0.00068826,92390.0,92389.0,0.58617645]
[1765518408162,0.00068826,92390.0,92389.0,0.58317645]
[1765518408468,0.00068826,92390.0,92389.0,0.58517645]
[1765518408719,0.00068826,92390.0,92389.0,0.58317645]
[1765518409393,0.00068826,92390.0,92389.0,0.58117645]
[1765518409604,0.00068826,92390.0,92389.0,0.58317645]
[1765518409819,0.00068826,92390.0,92389.0,0.58417645]
[1765518413312,0.0001074,92390.0,92389.0,0.58417645]
[1765518415037,0.0001074,92390.0,92389.0,0.55712996]
[1765518415332,0.0001074,92390.0,92389.0,0.57416996]
[1765518427856,0.0001074,92390.0,92389.0,0.22380709]
[1765518428094,0.0383474,92390.0,92389.0,0.22380709]
[1765518428718,0.0383474,92390.0,92389.0,0.22280709]
[1765518428951,0.0383474,92390.0,92389.0,0.22080709]
[1765518429178,0.0393474,92390.0,92389.0,0.22080709]
[1765518429375,0.06931053,92390.0,92389.0,0.22080709]
[1765518429588,0.06831053,92390.0,92389.0,0.00433111]
[1765518429810,0.0403474,92390.0,92387.0,0.05499356]
[1765518430012,0.01522,92388.0,92387.0,0.05499356]
[1765518430219,0.01522,92388.0,92387.0,0.02712953]
[1765518430450,0.03824,92388.0,92387.0,0.02712953]
[1765518430834,0.25471833,92388.0,92387.0,0.02712953]
[1765518430985,0.03824,92388.0,92387.0,0.02712953]
[1765518431398,0.03924,92388.0,92387.0,0.02712953]
[1765518431599,0.001,92388.0,92387.0,0.2436102]
[1765518431791,0.02402,92388.0,92387.0,0.2436102]
[1765518431993,0.04124,92388.0,92387.0,0.02712953]
[1765518442835,0.01822,92388.0,92387.0,0.02712953]
[1765518443134,0.003,92388.0,92387.0,0.5731902]
[1765518443327,0.003,92388.0,92387.0,0.59302307]
[1765518443624,0.003,92388.0,92387.0,0.69454117]
[1765518443825,0.003,92388.0,92387.0,0.63615105]
[1765518444202,0.002,92388.0,92387.0,0.63615105]
[1765518444749,9e-05,92393.0,92392.0,0.50716895]
[1765518444977,9e-05,92393.0,92392.0,0.56474182]
[1765518445188,9e-05,92393.0,92392.0,0.57474831]
[1765518446141,0.00109,92393.0,92392.0,0.57474831]
[1765518446538,0.00309,92393.0,92392.0,0.57474831]
[1765518446966,0.00109,92393.0,92392.0,0.57474831]
[1765518447373,9e-05,92393.0,92392.0,0.57674831]
[1765518447775,9e-05,92393.0,92392.0,0.57874831]
[1765518453005,9e-05,92393.0,92392.0,0.70661153]
[1765518453568,9e-05,92393.0,92392.0,0.71094264]
[1765518455404,9e-05,92393.0,92392.0,0.63309781]
[1765518459078,9e-05,92393.0,92392.0,0.62309132]
[1765518462198,9e-05,92393.0,92392.0,0.57307293]
[1765518462777,9e-05,92393.0,92392.0,0.57107293]
[1765518462980,9e-05,92393.0,92392.0,0.56907293]
[1765518463220,9e-05,92393.0,92392.0,0.57007293]
[1765518463529,9e-05,92393.0,92392.0,0.57107293]
[1765518464513,9e-05,92393.0,92392.0,0.57007293]
[1765518465999,9e-05,92393.0,92392.0,0.61320091]
[1765518469110,9e-05,92393.0,92392.0,0.69104574]
[1765518469372,9e-05,92393.0,92392.0,0.61320091]
[1765518470157,9e-05,92393.0,92392.0,0.69104574]
[1765518471303,9e-05,92393.0,92392.0,0.61320091]
[1765518473192,5.367e-05,92395.0,92394.0,0.56631225]
[1765518473340,5.367e-05,92395.0,92394.0,0.56792512]
[1765518473538,5.367e-05,92395.0,92394.0,0.59282512]
[1765518473875,5.367e-05,92395.0,92394.0,0.59715663]
[1765518474954,5.367e-05,92395.0,92394.0,0.55402865]
[1765518482742,5.367e-05,92395.0,92394.0,0.59715663]
[1765518483451,8.45e-06,92395.0,92394.0,0.59715663]
[1765518484220,8.45e-06,92395.0,92394.0,0.64717502]
[1765518485481,8.45e-06,92395.0,92394.0,0.74437281]
[1765518486030,0.0004,92400.0,92399.0,0.60029892]
[1765518486250,0.0004,92400.0,92399.0,0.61793179]
[1765518486425,0.0004,92400.0,92399.0,0.64283179]
[1765518486675,1e-08,92400.0,92399.0,1.77089453]
[1765518486880,0.0004,92410.0,92407.0,0.01082169]
[1765518487118,0.00050515,92410.0,92409.0,0.36298085]
[1765518487321,0.00050515,92410.0,92409.0,0.57940998]
[1765518487495,0.00050515,92410.0,92409.0,0.60430998]
[1765518487842,0.00050515,92410.0,92409.0,0.63143951]
[1765518491542,0.0004,92430.0,92429.0,0.5070823]
[1765518491746,0.0004,92430.0,92429.0,0.5401423]
[1765518491954,0.0004,92430.0,92429.0,0.60978315]
[1765518492162,0.0004,92430.0,92429.0,0.63386315]
[1765518492983,0.0004,92430.0,92429.0,0.63486315]
[1765518494243,0.0004,92430.0,92429.0,1.68488154]
[1765518494244,1e-08,92430.0,92429.0,1.68488154]
[1765518494480,0.0002,92440.0,92439.0,0.50705889]
[1765518494651,0.00030513,92440.0,92439.0,1.60961664]
[1765518494899,0.00030513,92440.0,92439.0,1.63757517]
[1765518495253,0.00030513,92440.0,92439.0,1.60961664]
[1765518495453,1e-08,92440.0,92439.0,1.60961664]
[1765518496133,1e-08,92440.0,92439.0,1.61261664]
[1765518496544,1e-08,92440.0,92439.0,1.61561664]
[1765518498185,1e-08,92440.0,92439.0,1.69296805]
[1765518498405,0.00129637,92440.0,92439.0,0.69296805]
[1765518498612,1e-08,92440.0,92439.0,1.69296805]
[1765518499062,1e-08,92440.0,92439.0,1.64633424]
[1765518499491,1e-08,92440.0,92439.0,1.67561391]
[1765518502582,1e-08,92440.0,92439.0,1.64633424]
[1765518503184,1e-08,92440.0,92439.0,1.61561664]
[1765518503628,1e-08,92440.0,92439.0,1.63269664]
[1765518505176,1e-08,92440.0,92439.0,1.63702466]
[1765518510342,1e-08,92440.0,92439.0,1.66774226]
[1765518511641,1e-08,92440.0,92439.0,1.63702466]
[1765518513027,1e-08,92440.0,92439.0,1.63698466]
[1765518515341,1e-08,92440.0,92439.0,1.61994466]
[1765518515608,1e-08,92440.0,92439.0,1.63698466]
[1765518518273,0.0004,92470.0,92459.0,0.55014007]
[1765518518411,0.0004,92470.0,92459.0,0.64058018]
[1765518518610,0.0004,92470.0,92459.0,0.66560305]
[1765518519012,0.0004,92470.0,92459.0,0.66993127]
[1765518519212,0.0004,92470.0,92459.0,0.61189116]
[1765518522556,0.0004,92470.0,92459.0,0.56876318]
[1765518523327,0.0004,92470.0,92459.0,0.64614999]
[1765518523845,0.00077589,92460.0,92459.0,0.64614999]
[1765518524255,0.00077589,92460.0,92459.0,0.56876318]
[1765518525271,0.00077589,92460.0,92459.0,0.52838031]
[1765518525778,0.00077589,92460.0,92459.0,0.56715031]
[1765518527001,0.00177589,92460.0,92459.0,0.56715031]
[1765518528099,0.00277589,92460.0,92459.0,0.56715031]
[1765518529857,0.00277589,92460.0,92459.0,0.5771568]
[1765518530264,0.00277589,92460.0,92459.0,0.57876967]
[1765518530886,0.00177589,92460.0,92459.0,0.57876967]
[1765518531268,0.00177589,92460.0,92459.0,0.57976967]
[1765518531566,0.00077589,92460.0,92459.0,0.57976967]
[1765518537868,0.00012235,92460.0,92459.0,0.57976967]
[1765518538875,0.00012235,92460.0,92459.0,0.6769263]
[1765518539761,0.00012235,92460.0,92459.0,0.57976967]
[1765518540073,0.00012235,92460.0,92459.0,0.6068992]
[1765518540219,0.00012235,92460.0,92459.0,0.70405583]
[1765518541953,0.00012235,92460.0,92459.0,0.6068992]
[1765518542293,0.00012235,92460.0,92459.0,0.64002069]
[1765518544400,0.00012235,92460.0,92459.0,0.73717732]
[1765518544766,1.407e-05,92460.0,92459.0,0.64002069]
[1765518546350,0.0004,92470.0,92469.0,0.55011668]
[1765518546578,0.0007884,92470.0,92469.0,0.58413955]
[1765518546793,0.0007884,92470.0,92469.0,0.60750955]
[1765518547573,0.0017884,92470.0,92469.0,0.61183695]
[1765518547759,0.00028292,92470.0,92469.0,0.71095265]
[1765518548357,0.00028292,92470.0,92469.0,0.61383695]
[1765518548689,0.0004,92480.0,92479.0,0.55009329]
[1765518548897,0.00051647,92480.0,92479.0,0.57699329]
[1765518549095,0.00051647,92480.0,92479.0,0.60036329]
[1765518549330,0.00051647,92480.0,92479.0,0.61233329]
[1765518550222,0.00051647,92480.0,92479.0,0.56920531]
[1765518550546,0.00051647,92480.0,92479.0,0.53046531]
[1765518550935,0.00051647,92480.0,92479.0,0.56920531]
[1765518554923,0.00051647,92480.0,92479.0,0.61233329]
[1765518555059,0.00051647,92480.0,92479.0,0.62937329]
[1765518555243,0.00109218,92480.0,92479.0,0.62937329]
[1765518555662,0.00109218,92480.0,92479.0,0.63098616]
[1765518556459,0.00109218,92480.0,92479.0,0.70864415]
[1765518556807,0.00109218,92480.0,92479.0,0.63098616]
[1765518558081,0.00109218,92480.0,92479.0,0.63298616]
[1765518567261,0.00017401,92480.0,92479.0,0.63298616]
[1765518568064,0.00017401,92480.0,92479.0,0.58985818]
[1765518568483,0.00017401,92480.0,92479.0,0.54944818]
[1765518568686,0.00017401,92480.0,92479.0,0.55111818]
[1765518568939,0.00017401,92480.0,92479.0,0.53958818]
[1765518569235,0.00017401,92480.0,92479.0,0.24888818]
[1765518569655,0.00017401,92480.0,92479.0,0.53858818]
[1765518569843,0.00017401,92480.0,92479.0,0.24688818]
[1765518570274,0.00117401,92480.0,92479.0,0.22823531]
[1765518570851,0.00117401,92480.0,92479.0,0.24339484]
[1765518571258,0.03917401,92480.0,92479.0,0.24339484]
[1765518572035,0.04536964,92480.0,92479.0,0.24339484]
[1765518572436,0.01657401,92480.0,92479.0,0.24339484]
[1765518572661,0.00117401,92480.0,92479.0,0.24339484]
[1765518574885,0.03917401,92480.0,92479.0,0.24339484]
[1765518579772,0.03917401,92480.0,92479.0,0.53409484]
[1765518581744,0.21626531,92479.0,92474.0,0.05826976]
[1765518581940,0.21626531,92479.0,92469.0,0.01081443]
[1765518581941,0.04455636,92472.0,92469.0,0.01081443]
[1765518582178,0.02789,92470.0,92469.0,0.01081443]
[1765518582603,0.05049,92470.0,92469.0,0.01081443]
[1765518583840,0.05249,92470.0,92469.0,0.01081443]
[1765518585272,0.05449,92470.0,92469.0,0.01081443]
[1765518587028,0.05449,92470.0,92468.0,0.21629104]
[1765518587231,0.07930332,92469.0,92468.0,0.21629104]
[1765518587402,0.07930332,92469.0,92466.0,0.22710974]
[1765518587600,0.03923,92468.0,92466.0,0.22710974]
[1765518588059,0.03923,92468.0,92464.0,0.01081501]
[1765518588283,0.02269,92467.0,92465.0,0.0108149]
[1765518588470,0.02269,92467.0,92465.0,0.22711136]
[1765518588471,0.05637466,92467.0,92465.0,0.22711136]
[1765518588680,0.02848,92466.0,92465.0,0.22711136]
[1765518588896,0.05117,92466.0,92465.0,0.22711136]
[1765518589237,0.05117,92466.0,92464.0,0.01081501]
[1765518589442,0.04455636,92464.0,92462.0,0.02712953]
[1765518589638,0.06079258,92463.0,92462.0,0.02712953]
[1765518589881,0.08348258,92463.0,92462.0,0.02712953]
[1765518591396,0.08448258,92463.0,92462.0,0.02712953]
[1765518591597,0.08548258,92463.0,92462.0,0.02712953]
[1765518592834,0.08548258,92463.0,92454.0,0.01081618]
[1765518592835,0.01081583,92457.0,92454.0,0.01081618]
[1765518593094,0.02848,92455.0,92454.0,0.01081618]
[1765518593574,0.09572636,92455.0,92449.0,0.01081677]
[1765518593830,0.01654,92453.0,92452.0,0.01081642]
[1765518593989,0.02269,92454.0,92452.0,0.01081642]
[1765518594186,0.01654,92453.0,92452.0,0.22714456]
[1765518594512,0.01654,92453.0,92452.0,0.21632847]
[1765518594741,0.03923,92453.0,92451.0,0.01081654]
[1765518594946,0.01654,92452.0,92451.0,0.01081654]
[1765518595150,0.03923,92452.0,92448.0,0.01081689]
[1765518595366,0.03923,92452.0,92447.0,0.02712953]
[1765518595367,0.22715472,92448.0,92447.0,0.02712953]
[1765518595578,0.22715472,92448.0,92439.0,0.2907]
[1765518595579,0.01081735,92444.0,92440.0,0.01081782]
[1765518595788,0.00611,92440.0,92437.0,0.01081817]
[1765518596010,0.00611,92440.0,92437.0,0.22718124]
[1765518596011,0.01654,92438.0,92437.0,0.22718124]
[1765518596220,0.01654,92438.0,92437.0,0.22756964]
[1765518596431,0.03923,92438.0,92437.0,0.22756964]
[1765518597029,0.00611,92440.0,92437.0,0.22756964]
[1765518597261,0.0288,92440.0,92437.0,0.22756964]
[1765518597614,0.02269,92439.0,92437.0,0.22756964]
[1765518597821,0.001,92438.0,92437.0,0.22756964]
[1765518598025,0.01754,92438.0,92437.0,0.22756964]